fUSD/lending_fUSD_20240215
["ID","MTS","AMOUNT","RATE_DAILY","PERIOD"]
[314117449,1707997837197,-168.27,0.00039102,2]
[314117450,1707997837206,-151.021518,0.00039148,20]
[314117451,1707997837215,-545.9016,0.00039152,2]
[314117452,1707997837224,-13361.008,0.00039152,7]
[314117453,1707997837233,-1341.2263,0.00039152,2]
[314117454,1707997837242,-607.74,0.00039196,2]
[314117455,1707997837252,-155.6126,0.000392,2]
[314117456,1707997837261,-493.86684771,0.0003923,2]
[314117457,1707997837270,-231.53286314,0.00039252,11]
[314117458,1707997837279,-7256.0517,0.00039252,2]
[314117459,1707997837288,-155.8054,0.00039252,2]
[314117460,1707997837297,-37918.61696417,0.00039252,2]
[314117461,1707997837311,-905.006,0.00039252,2]
[314117462,1707997837322,-61176.37703583,0.00039252,2]
[314117463,1707997837332,-800.0,0.0003926,2]
[314117464,1707997837341,-167.87,0.0003926,2]
[314117465,1707997837350,-6000.0,0.000393,2]
[314117466,1707997837358,-170.80855075,0.00039342,2]
[314117467,1707997837366,-504.24296948,0.00039352,2]
[314117468,1707997837375,-295.62980089,0.00039352,2]
[314117469,1707997837383,-30830.07164305,0.00039352,2]
[314117470,1707997837395,-8355.06094673,0.00039352,2]
[314117471,1707997837406,-319.24149127,0.00039352,2]
[314117472,1707997837417,-357.46371413,0.00039352,2]
[314117473,1707997837433,-2393.0359926,0.00039352,2]
[314117474,1707997837445,-202745.12621222,0.00039352,2]
[314117475,1707997837454,-2236.0615,0.00039352,2]
[314117476,1707997837463,-607.74,0.00039393,2]
[314117477,1707997837472,-150.0,0.00039395,2]
[314117478,1707997837481,-159.72869695,0.00039411,2]
[314117479,1707997837490,-37548.10377729,0.00039442,4]
[314117480,1707997837506,-373.90204875,0.00039442,4]
[314117481,1707997837521,-57571.92933886,0.00039442,4]
[314117482,1707997837530,-239.46563263,0.00039448,2]
[314117483,1707997837541,-151.021518,0.00039448,20]
[314117484,1707997837551,-150.0,0.00039448,2]
[314117485,1707997837560,-78012.96722149,0.00039451,4]
[314117486,1707997837573,-17480.96794341,0.00039451,4]
[314117487,1707997837582,-107113.09069292,0.00039452,5]
[314117488,1707997837593,-47258.68271756,0.00039452,5]
[314117492,1707997838096,-538.85874819,0.00038256,2]
[314117493,1707997838112,-12051.74021493,0.00038256,2]
[314117494,1707997838122,-12816.13648034,0.00039452,5]
[314117495,1707997838278,-1635.27295746,0.00039452,5]
[314117722,1707997840738,-171.0,0.00038,2]
[314117724,1707997840748,-322.98810185,0.00039452,5]
[314117727,1707997840760,-252.33746676,0.00039452,5]
[314117732,1707997840801,-256.2242994,0.00039452,5]
[314117734,1707997840815,-26183.43000001,0.00039452,5]
[314117737,1707997840832,-3064.68,0.00039452,5]
[314117741,1707997840866,-7000.0,0.00039452,5]
[314117812,1707997841620,-13767.2536,0.00039452,5]
[314117815,1707997841632,-4085.03604255,0.00039452,5]
[314117824,1707997841705,-324.83345453,0.00039452,5]
[314118022,1707997844766,-12590.5989631,0.00038837,2]
[314118023,1707997844775,-32792.46915739,0.00039452,5]
[314118024,1707997844787,-121580.3315753,0.00039452,5]
[314118025,1707997844800,-4580.52877586,0.00039452,5]
[314118026,1707997844816,-2616.15,0.00039452,5]
[314118027,1707997844867,-217397.76289427,0.00039452,5]
[314118028,1707997844876,-500.0,0.00039452,7]
[314118029,1707997844885,-500.0,0.00039452,7]
[314118030,1707997844894,-240.35440437,0.00039452,7]
[314118031,1707997844903,-500.0,0.00039452,7]
[314118032,1707997844913,-500.0,0.00039452,7]
[314118033,1707997844922,-500.0,0.00039452,7]
[314118034,1707997844932,-500.0,0.00039452,7]
[314118035,1707997844941,-600.95428964,0.00039452,2]
[314118036,1707997844951,-500.0,0.00039452,7]
[314118037,1707997844960,-632.51,0.00039452,7]
[314118038,1707997844970,-500.0,0.00039452,7]
[314118039,1707997844979,-500.0,0.00039452,7]
[314118040,1707997844988,-500.0,0.00039452,7]
[314118041,1707997844997,-500.0,0.00039452,7]
[314118042,1707997845007,-610.44684359,0.00039452,7]
[314118043,1707997845016,-500.0,0.00039452,7]
[314118044,1707997845025,-336.98492072,0.00039452,7]
[314118045,1707997845035,-150.0,0.00039452,7]
[314118046,1707997845044,-500.0,0.00039452,7]
[314118047,1707997845053,-500.0,0.00039452,7]
[314118048,1707997845062,-500.0,0.00039452,7]
[314118049,1707997845073,-226.74238218,0.00039452,7]
[314118050,1707997845082,-500.0,0.00039452,7]
[314118053,1707997845092,-500.0,0.00039452,7]
[314118054,1707997845101,-500.0,0.00039452,7]
[314118055,1707997845112,-500.0,0.00039452,7]
[314118056,1707997845121,-524.56973147,0.00039452,7]
[314118057,1707997845130,-500.0,0.00039452,7]
[314118058,1707997845140,-538.94196779,0.00039452,7]
[314118059,1707997845149,-500.0,0.00039452,7]
[314118060,1707997845159,-357.11,0.00039452,7]
[314118061,1707997845169,-564.73010414,0.00039452,7]
[314118062,1707997845178,-500.0,0.00039452,7]
[314118063,1707997845188,-541.25,0.00039452,7]
[314118064,1707997845198,-500.0,0.00039452,7]
[314118065,1707997845207,-548.10448524,0.00039452,7]
[314118066,1707997845217,-598.61435659,0.00039452,7]
[314118067,1707997845226,-500.0,0.00039452,7]
[314118068,1707997845237,-519.68785061,0.00039452,7]
[314118069,1707997845246,-500.0,0.00039452,7]
[314118070,1707997845255,-500.0,0.00039452,7]
[314118071,1707997845265,-500.0,0.00039452,7]
[314118072,1707997845274,-500.0,0.00039452,7]
[314118073,1707997845284,-500.0,0.00039452,7]
[314118074,1707997845293,-150.72,0.00039452,7]
[314118075,1707997845302,-289.73,0.00039452,7]
[314118076,1707997845324,-500.0,0.00039452,7]
[314118077,1707997845335,-419.29678064,0.00039452,7]
[314118078,1707997845345,-500.0,0.00039452,7]
[314118079,1707997845358,-586.38,0.00039452,7]
[314118080,1707997845399,-565.1221515,0.00039452,7]
[314118081,1707997845447,-500.0,0.00039452,7]
[314118082,1707997845471,-495.85,0.00039452,7]
[314118083,1707997845494,-500.0,0.00039452,7]
[314118084,1707997845514,-382.95,0.00039452,7]
[314118085,1707997845524,-500.0,0.00039452,7]
[314118086,1707997845534,-176.49,0.00039452,7]
[314118087,1707997845543,-440.063077,0.00039452,7]
[314118088,1707997845553,-556.05267109,0.00039452,7]
[314118089,1707997845562,-500.0,0.00039452,7]
[314118090,1707997845573,-500.0,0.00039452,7]
[314118091,1707997845583,-500.0,0.00039452,7]
[314118092,1707997845592,-500.0,0.00039452,7]
[314118093,1707997845602,-500.0,0.00039452,7]
[314118094,1707997845612,-547.95025214,0.00039452,7]
[314118095,1707997845621,-500.0,0.00039452,7]
[314118096,1707997845631,-500.0,0.00039452,7]
[314118097,1707997845640,-500.0,0.00039452,7]
[314118098,1707997845650,-2485.64,0.00039452,7]
[314118099,1707997845657,-500.0,0.00039452,7]
[314118100,1707997845663,-566.94101131,0.00039452,7]
[314118101,1707997845670,-500.0,0.00039452,7]
[314118102,1707997845677,-500.0,0.00039452,7]
[314118103,1707997845684,-507.36,0.00039452,7]
[314118104,1707997845691,-519.42852308,0.00039452,7]
[314118105,1707997845700,-500.0,0.00039452,7]
[314118106,1707997845710,-1790.21,0.00039452,7]
[314118107,1707997845719,-500.0,0.00039452,7]
[314118108,1707997845728,-500.0,0.00039452,7]
[314118109,1707997845738,-500.0,0.00039452,7]
[314118110,1707997845747,-510.31746306,0.00039452,7]
[314118111,1707997845757,-24579.93,0.00039452,7]
[314118112,1707997845767,-500.0,0.00039452,7]
[314118113,1707997845776,-222.39316006,0.00039452,7]
[314118114,1707997845785,-500.0,0.00039452,7]
[314118115,1707997845795,-500.0,0.00039452,7]
[314118116,1707997845805,-500.0,0.00039452,7]
[314118117,1707997845815,-500.0,0.00039452,7]
[314118118,1707997845825,-500.0,0.00039452,7]
[314118119,1707997845837,-500.0,0.00039452,7]
[314118120,1707997845846,-500.0,0.00039452,7]
[314118121,1707997845856,-500.0,0.00039452,7]
[314118122,1707997845866,-500.0,0.00039452,7]
[314118123,1707997845879,-500.0,0.00039452,7]
[314118124,1707997845889,-500.0,0.00039452,7]
[314118125,1707997845898,-500.0,0.00039452,7]
[314118126,1707997845908,-500.0,0.00039452,7]
[314118128,1707997845917,-776.51,0.00039452,7]
[314118129,1707997845926,-500.0,0.00039452,7]
[314118131,1707997845936,-1248.99,0.00039452,7]
[314118133,1707997845947,-500.0,0.00039452,7]
[314118136,1707997845958,-500.0,0.00039452,7]
[314118139,1707997845971,-500.0,0.00039452,7]
[314118142,1707997845981,-504.58,0.00039452,7]
[314118144,1707997846003,-841.89,0.00039452,7]
[314118146,1707997846026,-500.0,0.00039452,7]
[314118148,1707997846049,-500.0,0.00039452,7]
[314118151,1707997846066,-500.0,0.00039452,7]
[314118152,1707997846075,-565.87869267,0.00039452,7]
[314118153,1707997846084,-500.0,0.00039452,7]
[314118154,1707997846094,-500.0,0.00039452,7]
[314118155,1707997846105,-500.0,0.00039452,7]
[314118156,1707997846115,-235.39935837,0.00039452,7]
[314118157,1707997846124,-675.4,0.00039452,7]
[314118158,1707997846134,-1066.86,0.00039452,7]
[314118159,1707997846143,-500.0,0.00039452,7]
[314118160,1707997846153,-500.0,0.00039452,7]
[314118161,1707997846163,-500.0,0.00039452,7]
[314118162,1707997846176,-500.0,0.00039452,7]
[314118163,1707997846185,-500.0,0.00039452,7]
[314118164,1707997846194,-500.0,0.00039452,7]
[314118165,1707997846203,-500.0,0.00039452,7]
[314118166,1707997846213,-500.0,0.00039452,7]
[314118167,1707997846222,-500.0,0.00039452,7]
[314118168,1707997846231,-538.94249897,0.00039452,7]
[314118169,1707997846240,-593.56639225,0.00039452,7]
[314118170,1707997846249,-500.0,0.00039452,7]
[314118171,1707997846258,-500.0,0.00039452,7]
[314118172,1707997846268,-500.0,0.00039452,7]
[314118173,1707997846278,-500.0,0.00039452,7]
[314118174,1707997846287,-953.96,0.00039452,7]
[314118175,1707997846296,-500.0,0.00039452,7]
[314118176,1707997846305,-500.0,0.00039452,7]
[314118177,1707997846315,-500.0,0.00039452,7]
[314118178,1707997846326,-500.0,0.00039452,7]
[314118179,1707997846335,-500.0,0.00039452,7]
[314118180,1707997846344,-500.0,0.00039452,7]
[314118181,1707997846353,-444.90498844,0.00039452,7]
[314118182,1707997846362,-500.0,0.00039452,7]
[314118183,1707997846371,-500.0,0.00039452,7]
[314118184,1707997846381,-500.0,0.00039452,7]
[314118185,1707997846390,-500.0,0.00039452,7]
[314118186,1707997846399,-514.82813539,0.00039452,7]
[314118187,1707997846408,-500.0,0.00039452,7]
[314118188,1707997846418,-500.0,0.00039452,7]
[314118190,1707997846427,-1852.37,0.00039452,7]
[314118191,1707997846436,-2245.56,0.00039452,7]
[314118193,1707997846445,-521.46840385,0.00039452,7]
[314118195,1707997846455,-500.0,0.00039452,7]
[314118197,1707997846464,-513.15272168,0.00039452,7]
[314118199,1707997846473,-500.0,0.00039452,7]
[314118200,1707997846482,-670.81,0.00039452,7]
[314118201,1707997846520,-787.2,0.00039452,7]
[314118202,1707997846530,-500.0,0.00039452,7]
[314118204,1707997846539,-500.0,0.00039452,7]
[314118206,1707997846548,-500.0,0.00039452,7]
[314118208,1707997846557,-500.0,0.00039452,7]
[314118210,1707997846567,-500.0,0.00039452,7]
[314118212,1707997846577,-500.0,0.00039452,7]
[314118214,1707997846586,-951.51,0.00039452,7]
[314118216,1707997846595,-500.0,0.00039452,7]
[314118218,1707997846604,-1753.65,0.00039452,7]
[314118219,1707997846613,-500.0,0.00039452,7]
[314118220,1707997846622,-574.70983922,0.00039452,7]
[314118221,1707997846631,-500.0,0.00039452,7]
[314118222,1707997846640,-500.0,0.00039452,7]
[314118223,1707997846650,-500.0,0.00039452,7]
[314118224,1707997846659,-500.0,0.00039452,7]
[314118225,1707997846669,-500.0,0.00039452,7]
[314118226,1707997846678,-705.13,0.00039452,7]
[314118227,1707997846687,-500.0,0.00039452,7]
[314118228,1707997846696,-500.0,0.00039452,7]
[314118229,1707997846705,-500.0,0.00039452,7]
[314118230,1707997846714,-500.0,0.00039452,7]
[314118232,1707997846723,-500.0,0.00039452,7]
[314118234,1707997846732,-171.40501213,0.00039452,7]
[314118236,1707997846741,-546.91,0.00039452,7]
[314118238,1707997846750,-500.0,0.00039452,7]
[314118239,1707997846759,-554.2,0.00039452,7]
[314118241,1707997846768,-535.71107906,0.00039452,7]
[314118243,1707997846777,-500.0,0.00039452,7]
[314118245,1707997846786,-500.0,0.00039452,7]
[314118247,1707997846795,-1842.25,0.00039452,7]
[314118249,1707997846805,-500.0,0.00039452,7]
[314118251,1707997846814,-500.0,0.00039452,7]
[314118253,1707997846824,-500.0,0.00039452,7]
[314118255,1707997846833,-500.0,0.00039452,7]
[314118258,1707997846842,-500.0,0.00039452,7]
[314118260,1707997846851,-500.0,0.00039452,7]
[314118262,1707997846861,-500.0,0.00039452,7]
[314118263,1707997846870,-511.94586453,0.00039452,7]
[314118265,1707997846879,-1614.9,0.00039452,7]
[314118267,1707997846889,-500.53,0.00039452,7]
[314118270,1707997846898,-511.86,0.00039452,7]
[314118272,1707997846907,-500.0,0.00039452,7]
[314118274,1707997846916,-500.0,0.00039452,7]
[314118276,1707997846925,-500.0,0.00039452,7]
[314118278,1707997846934,-500.0,0.00039452,7]
[314118280,1707997846943,-500.0,0.00039452,7]
[314118282,1707997846952,-500.0,0.00039452,7]
[314118284,1707997846961,-500.0,0.00039452,7]
[314118286,1707997846970,-500.0,0.00039452,7]
[314118288,1707997846979,-500.0,0.00039452,7]
[314118290,1707997846988,-500.0,0.00039452,7]
[314118292,1707997846999,-500.0,0.00039452,7]
[314118294,1707997847007,-500.0,0.00039452,7]
[314118296,1707997847016,-1711.52,0.00039452,7]
[314118298,1707997847025,-570.0475101,0.00039452,7]
[314118300,1707997847034,-500.0,0.00039452,7]
[314118302,1707997847043,-500.0,0.00039452,7]
[314118304,1707997847052,-500.0,0.00039452,7]
[314118306,1707997847061,-500.0,0.00039452,7]
[314118308,1707997847070,-500.0,0.00039452,7]
[314118310,1707997847079,-1027.9,0.00039452,7]
[314118312,1707997847089,-1698.29,0.00039452,7]
[314118314,1707997847099,-500.0,0.00039452,7]
[314118316,1707997847111,-996.91,0.00039452,7]
[314118318,1707997847121,-500.0,0.00039452,7]
[314118320,1707997847130,-1380.21,0.00039452,7]
[314118322,1707997847139,-500.0,0.00039452,7]
[314118324,1707997847149,-500.0,0.00039452,7]
[314118326,1707997847159,-500.0,0.00039452,7]
[314118328,1707997847168,-522.44142082,0.00039452,7]
[314118330,1707997847178,-6372.875647,0.00039452,2]
[314118332,1707997847187,-539.89645641,0.00039452,7]
[314118347,1707997847314,-515.27477593,0.00039452,7]
[314118349,1707997847324,-500.0,0.00039452,7]
[314118350,1707997847333,-500.0,0.00039452,7]
[314118351,1707997847344,-500.0,0.00039452,7]
[314118352,1707997847353,-500.0,0.00039452,7]
[314118353,1707997847362,-597.42509435,0.00039452,7]
[314118354,1707997847371,-500.0,0.00039452,7]
[314118355,1707997847379,-500.0,0.00039452,7]
[314118356,1707997847388,-609.02,0.00039452,7]
[314118357,1707997847397,-500.0,0.00039452,7]
[314118359,1707997847407,-4183.33,0.00039452,7]
[314118361,1707997847418,-500.0,0.00039452,7]
[314118363,1707997847428,-500.0,0.00039452,7]
[314118365,1707997847438,-500.0,0.00039452,7]
[314118367,1707997847447,-500.0,0.00039452,7]
[314118369,1707997847458,-500.0,0.00039452,7]
[314118371,1707997847468,-500.0,0.00039452,7]
[314118373,1707997847477,-500.0,0.00039452,7]
[314118375,1707997847488,-512.0986752,0.00039452,7]
[314118377,1707997847498,-500.0,0.00039452,7]
[314118379,1707997847508,-500.0,0.00039452,7]
[314118381,1707997847519,-500.0,0.00039452,7]
[314118383,1707997847529,-526.90916506,0.00039452,7]
[314118385,1707997847539,-500.0,0.00039452,7]
[314118387,1707997847548,-500.0,0.00039452,7]
[314118389,1707997847559,-500.0,0.00039452,7]
[314118391,1707997847570,-580.66,0.00039452,7]
[314118393,1707997847581,-500.0,0.00039452,7]
[314118396,1707997847592,-1396.55,0.00039452,7]
[314118398,1707997847602,-537.9494555,0.00039452,7]
[314118400,1707997847612,-500.0,0.00039452,7]
[314118401,1707997847622,-388.44820833,0.00039452,7]
[314118404,1707997847633,-500.0,0.00039452,7]
[314118405,1707997847644,-546.66548949,0.00039452,7]
[314118408,1707997847655,-481.65017347,0.00039452,7]
[314118410,1707997847665,-500.0,0.00039452,7]
[314118411,1707997847676,-500.0,0.00039452,7]
[314118414,1707997847686,-195.95790686,0.00039452,7]
[314118416,1707997847696,-500.0,0.00039452,7]
[314118418,1707997847710,-500.0,0.00039452,7]
[314118419,1707997847720,-500.0,0.00039452,7]
[314118422,1707997847731,-500.0,0.00039452,7]
[314118424,1707997847741,-500.0,0.00039452,7]
[314118425,1707997847751,-1859.59,0.00039452,7]
[314118427,1707997847761,-574.20118815,0.00039452,7]
[314118429,1707997847771,-500.0,0.00039452,7]
[314118432,1707997847780,-500.0,0.00039452,7]
[314118434,1707997847789,-500.0,0.00039452,7]
[314118436,1707997847799,-500.0,0.00039452,7]
[314118438,1707997847811,-500.0,0.00039452,7]
[314118440,1707997847822,-500.0,0.00039452,7]
[314118442,1707997847832,-500.0,0.00039452,7]
[314118444,1707997847841,-500.0,0.00039452,7]
[314118446,1707997847850,-500.0,0.00039452,7]
[314118448,1707997847860,-185.98301001,0.00039452,7]
[314118450,1707997847870,-500.0,0.00039452,7]
[314118452,1707997847879,-500.0,0.00039452,7]
[314118454,1707997847889,-500.0,0.00039452,7]
[314118456,1707997847898,-500.0,0.00039452,7]
[314118458,1707997847907,-500.0,0.00039452,7]
[314118460,1707997847916,-500.0,0.00039452,7]
[314118462,1707997847926,-500.0,0.00039452,7]
[314118464,1707997847936,-500.0,0.00039452,7]
[314118466,1707997847945,-500.0,0.00039452,7]
[314118468,1707997847954,-500.0,0.00039452,7]
[314118470,1707997847964,-557.50893271,0.00039452,7]
[314118472,1707997847973,-500.0,0.00039452,7]
[314118474,1707997847983,-648.31,0.00039452,7]
[314118476,1707997847992,-500.0,0.00039452,7]
[314118478,1707997848002,-500.0,0.00039452,7]
[314118479,1707997848011,-500.0,0.00039452,7]
[314118482,1707997848021,-1000.0,0.00039452,120]
[314118484,1707997848032,-500.0,0.00039452,7]
[314118485,1707997848043,-500.0,0.00039452,7]
[314118488,1707997848054,-500.0,0.00039452,7]
[314118490,1707997848063,-500.0,0.00039452,7]
[314118492,1707997848076,-500.0,0.00039452,7]
[314118494,1707997848086,-500.0,0.00039452,7]
[314118496,1707997848100,-500.0,0.00039452,7]
[314118498,1707997848111,-500.0,0.00039452,7]
[314118500,1707997848121,-500.0,0.00039452,2]
[314118502,1707997848132,-500.0,0.00039452,7]
[314118504,1707997848143,-500.0,0.00039452,7]
[314118506,1707997848153,-578.66465498,0.00039452,7]
[314118508,1707997848163,-500.0,0.00039452,7]
[314118510,1707997848174,-500.0,0.00039452,7]
[314118512,1707997848186,-500.0,0.00039452,7]
[314118514,1707997848196,-500.0,0.00039452,7]
[314118516,1707997848206,-500.0,0.00039452,7]
[314118518,1707997848218,-500.0,0.00039452,7]
[314118520,1707997848230,-500.0,0.00039452,7]
[314118523,1707997848241,-1047.53,0.00039452,7]
[314118525,1707997848250,-607.30732026,0.00039452,7]
[314118527,1707997848260,-500.0,0.00039452,2]
[314118529,1707997848270,-527.03,0.00039452,7]
[314118530,1707997848280,-500.0,0.00039452,7]
[314118533,1707997848291,-500.0,0.00039452,7]
[314118535,1707997848302,-150.0,0.00039453,2]
[314118537,1707997848313,-500.0,0.00039471,7]
[314118539,1707997848324,-500.0,0.00039471,7]
[314118541,1707997848334,-537.30757154,0.00039471,7]
[314118542,1707997848344,-500.0,0.00039471,7]
[314118545,1707997848354,-500.0,0.00039471,7]
[314118546,1707997848365,-500.0,0.00039471,7]
[314118547,1707997848375,-500.0,0.00039471,7]
[314118548,1707997848386,-500.0,0.00039471,7]
[314118549,1707997848397,-443.89613779,0.00039471,7]
[314118550,1707997848411,-500.0,0.00039471,7]
[314118551,1707997848422,-500.0,0.00039471,7]
[314118552,1707997848432,-344.18797395,0.00039471,7]
[314118553,1707997848442,-500.0,0.00039471,7]
[314118554,1707997848451,-500.0,0.00039471,7]
[314118555,1707997848461,-551.67157159,0.00039471,7]
[314118556,1707997848471,-500.0,0.00039471,7]
[314118557,1707997848481,-371.50445755,0.00039471,7]
[314118558,1707997848490,-500.0,0.00039471,7]
[314118559,1707997848501,-150.0,0.000395,2]
[314118560,1707997848511,-607.74,0.0003959,2]
[314118561,1707997848521,-157.07803335,0.00039626,5]
[314118562,1707997848531,-450.64630675,0.00039626,2]
[314118563,1707997848542,-1488.79158376,0.00039626,2]
[314118564,1707997848552,-799.17051073,0.00039626,2]
[314118565,1707997848562,-5000.0,0.00039645,3]
[314118566,1707997848574,-648.55,0.00039677,2]
[314118567,1707997848584,-171.0,0.0003969,14]
[314118568,1707997848594,-239.46563263,0.00039713,2]
[314118569,1707997848604,-211568.86752543,0.00039716,4]
[314118570,1707997848630,-2326.13427486,0.00039716,4]
[314118571,1707997848647,-2145.77997906,0.00039716,4]
[314118572,1707997848659,-6012.75900151,0.00039716,4]
[314118573,1707997848671,-3283.58258085,0.00039716,4]
[314118574,1707997848772,-500.0,0.00039452,7]
[314118575,1707997848782,-500.0,0.00039452,7]
[314118576,1707997848791,-500.0,0.00039452,7]
[314118577,1707997848806,-500.0,0.00039452,7]
[314118578,1707997848816,-2300.21688931,0.00039716,4]
[314118579,1707997848832,-436.25974719,0.00039716,4]
[314118580,1707997848844,-384.34893729,0.00039716,4]
[314118581,1707997848962,-5031.99999996,0.00039716,4]
[314118582,1707997848978,-5404.84999999,0.00039716,4]
[314118583,1707997848990,-517.52301192,0.00039716,4]
[314118584,1707997869864,6609.0,0.00023,2]
[314118585,1707997869887,8381.0,0.00023,2]
[314118586,1707997869912,10000.0,0.00023,2]
[314118587,1707997869943,1000.0,0.00023,2]
[314118588,1707997870118,1000.0,0.00023,2]
[314118589,1707997870140,1000.0,0.00023,2]
[314118590,1707997870161,1000.0,0.00023,2]
[314118591,1707997870180,1000.0,0.00023,2]
[314118592,1707997870202,1000.0,0.00023,2]
[314118593,1707997870222,1000.0,0.00023,2]
[314118594,1707997870242,1000.0,0.00023,2]
[314118595,1707997870274,433937.52146016,0.00023,2]
[314118596,1707997875132,332.98970873,0.00022,30]
[314118597,1707997876135,636.97620883,0.000121,30]
[314118598,1707997922604,312.37287528,0.00022,30]
[314118601,1707998031432,161490.33697612,0.00023,2]
[314118602,1707998051889,1629.31446722,0.00012,30]
[314118603,1707998057971,155.0,0.0002,2]
[314118604,1707998063946,568.64027668,0.000137,2]
[314118607,1707998067907,12049.64350002,0.00025,30]
[314118608,1707998067933,2202.86769111,0.00025,30]
[314118631,1707999032279,-1154.3,0.00023947,2]
[314118632,1707999032289,-161.5192934,0.0002499,2]
[314118633,1707999032298,-150.0,0.00025089,2]
[314118634,1707999032308,-4945.59925922,0.0002509,2]
[314118635,1707999032318,-530.42485167,0.0002509,2]
[314118636,1707999032328,-161.5192933,0.00025397,2]
[314118637,1707999032338,-161.5192933,0.00025803,2]
[314118638,1707999032347,-857.61,0.00025803,2]
[314118639,1707999032356,-1042.2,0.00025813,2]
[314118640,1707999032367,-180.12,0.00025923,10]
[314118641,1707999032377,-532.74,0.00025923,2]
[314118642,1707999032386,-195.65,0.00025954,2]
[314118643,1707999032396,-500.0,0.00025954,2]
[314118644,1707999032405,-281.33,0.00026003,2]
[314118645,1707999032415,-200.0,0.00026012,2]
[314118646,1707999032429,-2000.0,0.00026028,2]
[314118647,1707999032439,-7081.6,0.00026041,2]
[314118648,1707999032448,-6096.07400912,0.00026127,2]
[314118649,1707999032466,-8219.41880304,0.00026127,2]
[314118650,1707999032490,-1772.1881162,0.00026127,2]
[314118651,1707999032501,-4844.19563405,0.00026127,2]
[314118652,1707999032517,-2968.12343759,0.00026127,2]
[314118653,1707999032527,-200.0,0.00026127,2]
[314118654,1707999032536,-2068.56256241,0.00026161,2]
[314118690,1707999038320,-3823.22743759,0.00026161,2]
[314118691,1707999038330,-1016.97,0.00026162,2]
[314118692,1707999038340,-161.5192933,0.0002621,2]
[314118693,1707999038349,-327.32,0.0002621,2]
[314118694,1707999038358,-1154.3,0.00026211,2]
[314118695,1707999038368,-384.09,0.00026292,2]
[314118696,1707999038378,-4048.62602515,0.000263,2]
[314118697,1707999038387,-2705.0,0.00026351,2]
[314118698,1707999038396,-352.78,0.00026351,2]
[314118699,1707999038405,-9999.99,0.00026351,2]
[314118700,1707999038415,-14603.63,0.00026351,2]
[314118701,1707999038426,-384.09,0.00026364,2]
[314118702,1707999038436,-161.74,0.00026408,2]
[314118703,1707999038445,-384.09,0.00026436,2]
[314118704,1707999038455,-250.0,0.00026464,2]
[314118705,1707999038464,-384.09,0.00026508,2]
[314118706,1707999038473,-150.0,0.00026517,2]
[314118707,1707999038482,-977.63,0.00026569,2]
[314118708,1707999038492,-384.09,0.00026581,2]
[314118709,1707999038501,-161.5192933,0.00026616,2]
[314118710,1707999038512,-384.09,0.00026653,2]
[314118711,1707999038521,-23546.25,0.00026665,2]
[314118712,1707999038531,-250.0,0.00026665,2]
[314118713,1707999038540,-150.0,0.00026669,2]
[314118714,1707999038549,-384.09,0.00026725,2]
[314118715,1707999038559,-250.0,0.0002674,2]
[314118716,1707999038569,-200.0,0.00026785,2]
[314118717,1707999038578,-384.09,0.00026797,2]
[314118718,1707999038587,-384.09,0.00026869,2]